bitfinex-derivatives/quotes_ETHF0:USTF0_20250329
["timestamp","ask_amount","ask_price","bid_price","bid_amount"]
[1743290701511,2.52307,1821.9,1821.8,2.49863]
[1743290702112,2.52307,1821.9,1821.8,1.4004]
[1743290702810,3.22437,1821.9,1821.8,1.4004]
[1743290704705,3.22437,1821.9,1821.8,2.49863]
[1743290705210,3.22437,1821.9,1821.8,1.4004]
[1743290706815,6.43217,1821.9,1821.8,1.4004]
[1743290707717,3.22437,1821.9,1821.8,1.4004]
[1743290708910,1.09835,1821.6,1821.5,3.505]
[1743290709112,1.3908,1821.8,1821.5,3.505]
[1743290709313,2.48905,1821.8,1821.7,1.09829]
[1743290709712,2.48905,1821.8,1821.7,2.54689]
[1743290710719,2.48905,1821.8,1821.7,1.4486]
[1743290710914,1.09829,1821.7,1821.6,1.3999]
[1743290711121,3.22989,1821.7,1821.6,2.8786]
[1743290711416,6.43769,1821.7,1821.6,2.8786]
[1743290713712,6.43769,1821.7,1821.6,3.97695]
[1743290714009,6.43769,1821.7,1821.6,2.8786]
[1743290716118,6.43769,1821.7,1821.6,3.4282]
[1743290716315,1.09841,1821.5,1821.2,3.2078]
[1743290716620,1.3955,1821.4,1821.3,7.2927]
[1743290716825,1.3955,1821.4,1821.3,6.7431]
[1743290717315,1.3955,1821.4,1821.3,7.2927]
[1743290717522,1.3955,1821.4,1821.3,6.7431]
[1743290718021,2.49397,1821.4,1821.3,6.7431]
[1743290718212,1.3955,1821.4,1821.3,6.7431]
[1743290718815,1.3955,1821.4,1821.3,7.2927]
[1743290719015,1.3955,1821.4,1821.3,6.7431]
[1743290720215,1.3955,1821.4,1821.3,7.2927]
[1743290720623,1.3955,1821.4,1821.3,6.7431]
[1743290721128,1.3955,1821.4,1821.3,7.2927]
[1743290721423,1.3955,1821.4,1821.3,6.7431]
[1743290721721,3.2078,1821.5,1821.4,1.09847]
[1743290721918,2.1784,1821.6,1821.5,1.09841]
[1743290722118,3.2078,1821.7,1821.6,1.09835]
[1743290722316,4.30611,1821.7,1821.6,3.505]
[1743290722512,5.75331,1821.7,1821.6,3.505]
[1743290722717,5.75331,1821.7,1821.6,4.8629]
[1743290722916,5.75331,1821.7,1821.6,5.5588]
[1743290723825,5.75331,1821.7,1821.6,6.65715]
[1743290725417,1.4472,1821.7,1821.6,6.65715]
[1743290725812,5.69621,1821.9,1821.6,6.65715]
[1743290725813,5.69617,1821.9,1821.8,1.09823]
[1743290727225,7.16967,1821.9,1821.7,2.51804]
[1743290727421,7.16967,1821.9,1821.8,1.4198]
[1743290727615,7.16967,1821.9,1821.8,2.51803]
[1743290728726,7.16967,1821.9,1821.8,1.4198]
[1743290731428,3.96187,1821.9,1821.8,2.51803]
[1743290738028,2.8637,1821.9,1821.8,2.51803]
[1743290739232,1.4735,1821.9,1821.8,2.51803]
[1743290739436,3.2078,1822.0,1821.9,1.09817]
[1743290739638,3.2078,1822.0,1821.9,6.75787]
[1743290739840,4.688,1822.0,1821.9,6.75787]
[1743290742427,1.4802,1822.0,1821.9,6.75787]
[1743290748946,0.7243,1822.1,1822.0,1.09811]
[1743290749138,2.1674,1822.1,1822.0,2.50901]
[1743290749339,2.1674,1822.1,1822.0,1.4109]
[1743290749746,2.1674,1822.1,1822.0,2.50901]
[1743290752641,26.8816038,1822.4,1822.3,1.09793]
[1743290752836,28.3145038,1822.4,1822.3,4.60193]
[1743290753446,28.3145038,1822.4,1822.3,6.01853]
[1743290755041,4.6407,1822.4,1822.3,6.01853]
[1743290757345,1.4329,1822.4,1822.3,6.01853]
[1743290758448,2.53077,1822.4,1822.3,6.01853]
[1743290758648,1.4329,1822.4,1822.3,6.01853]
[1743290760550,2.1675,1822.4,1822.3,6.01853]
[1743290761052,1.4329,1822.4,1822.3,6.01853]
[1743290763453,2.53077,1822.4,1822.3,6.01853]
[1743290763653,1.4329,1822.4,1822.3,6.01853]
[1743290765145,2.53077,1822.4,1822.3,6.01853]
[1743290765748,1.4329,1822.4,1822.3,6.01853]
[1743290777157,2.53077,1822.4,1822.3,6.01853]
[1743290779455,1.4329,1822.4,1822.3,6.01853]
[1743290781064,2.53077,1822.4,1822.3,6.01853]
[1743290781768,2.53077,1822.4,1822.3,1.4166]
[1743290782070,2.53077,1822.4,1822.1,1.2979]
[1743290782071,1.09799,1822.2,1822.1,3.503]
[1743290782367,1.09811,1822.0,1821.9,3.5112438]
[1743290782560,4.30591,1822.0,1821.9,3.5112438]
[1743290782962,5.72131,1822.0,1821.9,3.5112438]
[1743290786873,3.2078,1822.0,1821.9,4.6094138]
[1743290787170,3.2078,1822.0,1821.9,7.3558138]
[1743290787877,4.30591,1822.0,1821.9,6.2576438]
[1743290788177,5.74251,1822.0,1821.9,6.2576438]
[1743290791577,5.74251,1822.0,1821.9,7.3558138]
[1743290793970,4.6444,1822.0,1821.9,7.3558138]
[1743290794870,2.53471,1822.0,1821.9,6.2576438]
[1743290795473,2.53471,1822.0,1821.9,7.3558138]
[1743290795666,2.53471,1822.0,1821.9,6.2576438]
[1743290796778,2.53471,1822.0,1821.9,7.3558138]
[1743290799178,2.53471,1822.0,1821.9,1.3702438]
[1743290799478,2.53471,1822.0,1821.9,4.8732438]
[1743290800179,2.53471,1822.0,1821.9,5.9714138]
[1743290800375,1.4366,1822.0,1821.9,5.9714138]
[1743290801168,2.53471,1822.0,1821.9,4.8732438]
[1743290801369,2.53471,1822.0,1821.9,3.5112438]
[1743290803481,2.53471,1822.0,1821.9,0.0082438]
[1743290821090,2.53471,1822.0,1821.9,1.4071438]
[1743290821797,1.4366,1822.0,1821.9,1.4071438]
[1743290822101,4.30587,1822.1,1822.0,1.09811]
[1743290822102,3.2078,1822.1,1822.0,1.09811]
[1743290822295,3.2078,1822.1,1822.0,2.55251]
[1743290822500,4.30585,1822.1,1822.0,2.55251]
[1743290822701,3.2078,1822.1,1822.0,2.55251]
[1743290823099,4.30585,1822.1,1822.0,2.55251]
[1743290824394,4.30585,1822.1,1822.0,1.4544]
[1743290824901,4.30585,1822.1,1822.0,2.9299]
[1743290826503,4.30585,1822.1,1822.0,4.02801]
[1743290830202,1.09811,1822.0,1821.9,0.0082438]
[1743290830396,3.99041,1822.0,1821.9,0.0082438]
[1743290830595,3.99041,1822.0,1821.9,3.5112438]
[1743290832111,3.26391,1822.0,1821.9,4.2641438]
[1743290832312,3.26391,1822.0,1821.9,5.0072438]
[1743290832714,3.26391,1822.0,1821.9,6.3748438]
[1743290834613,3.26391,1822.0,1821.9,4.8788438]
[1743290836317,3.26391,1822.0,1821.9,3.5112438]
[1743290841812,5.77481,1822.0,1821.9,3.5112438]
[1743290842115,5.77481,1822.0,1821.9,4.9591438]
[1743290842515,5.77481,1822.0,1821.9,6.3316438]
[1743290843421,5.77481,1822.0,1821.9,3.5112438]
[1743290849829,5.77481,1822.0,1821.9,5.6900438]
[1743290855433,5.77481,1822.0,1821.9,0.0082438]
[1743290856231,5.77481,1822.0,1821.9,1.4953438]
[1743290861035,11.77681,1822.0,1821.7,0.5496]
[1743290861232,3.2078,1821.8,1820.9,1.91663411]
[1743290861431,8.0578,1821.9,1820.9,1.91663411]
[1743290861432,4.30651,1821.0,1820.9,1.91663411]
[1743290861629,3.2078,1821.0,1820.8,1.3897]
[1743290861835,3.2078,1821.4,1820.9,1.83394]
[1743290862032,4.6677,1821.4,1821.0,1.3897]
[1743290862237,1.09865,1821.1,1821.0,1.3979438]
[1743290862437,1.09861,1821.2,1821.0,1.3979438]
[1743290862631,4.30641,1821.2,1821.0,1.3979438]
[1743290863238,1.09865,1821.1,1821.0,1.3979438]
[1743290875948,1.09865,1821.1,1821.0,1.9475438]
[1743290876354,1.09865,1821.1,1821.0,1.3979438]
[1743290876542,1.09865,1821.1,1821.0,1.9475438]
[1743290879750,2.46925,1821.1,1821.0,1.9475438]
[1743290885752,2.46925,1821.1,1821.0,3.0462538]
[1743290885955,0.0082438,1821.3,1821.2,1.09859]
[1743290886155,0.0082438,1821.3,1821.2,4.60559]
[1743290886560,0.0082438,1821.3,1821.2,6.76669]
[1743290890869,1.3878,1821.4,1821.2,6.76669]
[1743290890870,3.2078,1821.6,1821.5,1.09841]
[1743290891169,1.4655,1821.7,1821.6,1.09835]
[1743290891359,2.56379,1821.7,1821.6,1.80365]
[1743290891563,2.56379,1821.7,1821.6,3.24085]
[1743290891759,3.29379,1821.7,1821.6,3.24085]
[1743290891961,2.1955,1821.7,1821.6,3.24085]
[1743290892163,2.9041,1821.7,1821.6,3.24085]
[1743290895168,26.8816038,1822.3,1822.2,1.09799]
[1743290895473,1.4419,1822.1,1822.0,1.09811]
[1743290895675,1.4419,1822.1,1822.0,3.23011]
[1743290906875,1.4419,1822.1,1822.0,3.95851]
[1743290909578,3.2078,1822.3,1822.2,1.09799]
[1743290910070,1.0979,1822.4,1822.2,1.09799]
[1743290910275,2.1709,1822.3,1822.2,1.09799]
[1743290915286,3.26883,1822.3,1822.2,1.09799]
[1743290915886,2.1709,1822.3,1822.2,1.09799]
[1743290932386,2.1709,1822.3,1822.2,4.59899]
[1743290943104,3.9311,1822.5,1822.4,1.09787]
[1743290943294,3.2078,1822.5,1822.4,1.09787]
[1743290943804,3.2078,1822.5,1822.4,2.46727]
[1743290943991,26.8816038,1822.7,1822.4,2.46727]
[1743290944197,26.8816038,1822.7,1822.6,1.09775]
[1743290944712,26.8816038,1822.7,1822.6,4.04525]
[1743290944906,3.2078,1822.7,1822.6,4.04525]
[1743290945108,1.09795,1822.3,1822.1,1.09802]
[1743290945309,1.09799,1822.2,1822.0,2.54319]
[1743290945506,1.09799,1822.2,1822.0,1.4451]
[1743290945507,0.7078,1822.1,1822.0,1.4451]
[1743290945699,0.7078,1822.1,1822.0,2.9475]
[1743290946005,3.18065,1822.1,1822.0,1.5024]
[1743290946308,3.18065,1822.1,1821.9,4.3141638]
[1743290946516,2.47291,1822.0,1821.9,4.7184438]
[1743290946801,1.3748,1822.0,1821.9,4.7184438]
[1743290947199,2.47291,1822.0,1821.9,4.7184438]
[1743290947598,2.47291,1822.0,1821.9,3.2160438]
[1743290948213,2.47291,1822.0,1821.9,0.0082438]
[1743290958213,2.47291,1822.0,1821.9,1.4726438]
[1743290959715,2.47291,1822.0,1821.9,2.5708138]
[1743290959908,2.47291,1822.0,1821.9,1.4726438]
[1743290996851,1.09841,1821.5,1821.4,3.2078]
[1743290997050,1.09841,1821.5,1821.4,0.7178]
[1743290997254,1.09853,1821.3,1821.2,6.7088]
[1743290997751,1.09853,1821.3,1821.2,3.2078]
[1743290997954,1.09853,1821.3,1821.2,6.7088]
[1743290998155,0.0082438,1821.4,1821.3,1.09853]
[1743290998350,1.1067138,1821.4,1821.3,2.59623]
[1743290998552,0.0082438,1821.4,1821.3,2.59623]
[1743290998758,1.4282438,1821.4,1821.3,2.59623]
[1743290999559,2.5267138,1821.4,1821.3,2.59623]
[1743290999757,2.5267138,1821.4,1821.3,1.4977]
[1743291005366,2.5267138,1821.4,1821.3,2.59623]
[1743291005762,2.5267138,1821.4,1821.3,1.4977]
[1743291006370,1.09853,1821.3,1821.2,4.2439]
[1743291006565,2.46503,1821.3,1821.2,4.2439]
[1743291007069,2.46503,1821.3,1821.2,5.7271]
[1743291007662,2.46503,1821.3,1821.2,6.82569]
[1743291010266,2.46503,1821.3,1821.2,3.32469]
[1743291010466,2.46506,1821.3,1821.2,1.09859]
[1743291010665,2.46506,1821.3,1821.2,3.26059]
[1743291012173,1.3665,1821.3,1821.2,3.26059]
[1743291012368,0.0082438,1821.4,1821.3,1.09853]
[1743291012673,0.0082438,1821.4,1821.3,5.98373]
[1743291013574,1.1067138,1821.4,1821.3,4.8852]
[1743291013773,2.4802138,1821.4,1821.3,4.8852]
[1743291014072,2.4802138,1821.4,1821.3,3.502]
[1743291014266,1.3817438,1821.4,1821.3,1.09853]
[1743291014462,0.0082438,1821.4,1821.3,1.09853]
[1743291014662,0.0082438,1821.4,1821.3,2.45843]
[1743291015078,1.1067138,1821.4,1821.3,2.45843]
[1743291017882,0.0082438,1821.4,1821.1,7.4504438]
[1743291018077,3.26796,1821.3,1821.1,10.7096738]
[1743291018277,1.83186,1821.3,1821.2,1.4482]
[1743291018781,1.09856,1821.3,1821.2,2.54679]
[1743291019682,1.1067538,1821.4,1821.3,1.09853]
[1743291019887,1.1067538,1821.4,1821.2,2.54674]
[1743291020071,1.1067538,1821.4,1821.3,1.09853]
[1743291020273,1.1067138,1821.4,1821.3,2.56533]
[1743291021182,1.1067138,1821.4,1821.3,1.4668]
[1743291025477,1.1067138,1821.4,1821.3,2.56533]
[1743291026578,0.0082438,1821.4,1821.3,2.56533]
[1743291026778,1.09831,1821.7,1821.3,5.77313]
[1743291026970,3.9387,1821.8,1821.6,1.09834]
[1743291027175,1.09831,1821.7,1821.6,1.09834]
[1743291027484,1.09831,1821.7,1821.6,1.09835]
[1743291033981,1.09835,1821.6,1821.5,2.49468]
[1743291034182,1.09847,1821.4,1821.2,1.09855]
[1743291034483,1.09847,1821.4,1821.3,4.9499]
[1743291034880,1.85047,1821.4,1821.3,3.502]
[1743291037681,3.26917,1821.4,1821.3,3.502]
[1743291038285,3.26917,1821.4,1821.3,4.9545]
[1743291038992,3.26917,1821.4,1821.3,6.05303]
[1743291039294,2.1707,1821.4,1821.3,6.05303]
[1743291039486,1.4187,1821.4,1821.3,6.75583]
[1743291039793,1.78451,1821.5,1821.4,1.09847]
[1743291039992,1.78451,1821.5,1821.4,2.58137]
[1743291040196,1.78451,1821.5,1821.4,1.4829]
[1743291040589,3.23381,1821.5,1821.4,1.4829]
[1743291041791,1.09847,1821.4,1821.3,3.502]
[1743291041992,6.45667,1821.4,1821.3,3.502]
[1743291042792,6.45667,1821.4,1821.3,4.9845]
[1743291044693,3.24887,1821.4,1821.3,4.9845]
[1743291060906,3.2078,1821.7,1821.4,1.09847]
[1743291061105,1.3769,1821.6,1821.5,4.05531]
[1743291061301,2.47525,1821.6,1821.5,2.9569]
[1743291070109,2.47525,1821.6,1821.5,4.05531]
[1743291070314,2.47525,1821.6,1821.5,2.9569]
[1743291078607,2.47525,1821.6,1821.5,2.2247]
[1743291093722,5.68305,1821.6,1821.5,2.2247]
[1743291097122,2.47525,1821.6,1821.5,2.2247]
[1743291097325,5.68305,1821.6,1821.5,2.9277]
[1743291098317,2.74603,1821.5,1821.1,0.0082438]
[1743291098534,2.74603,1821.5,1821.1,1.4519438]
[1743291098535,6.69922,1821.4,1821.1,1.4519438]
[1743291098729,1.09859,1821.2,1821.1,0.0082438]
[1743291099029,5.95431,1821.2,1820.7,2.53836]
[1743291099232,1.09882,1820.9,1820.8,1.3738]
[1743291099730,3.2078,1821.0,1820.7,1.4395]
[1743291099731,1.09883,1820.8,1820.7,1.4395]
[1743291099930,3.22553,1820.8,1820.7,1.4395]
[1743291100132,6.43333,1820.8,1820.7,1.4395]
[1743291100321,1.09889,1820.7,1820.6,1.3980438]
[1743291100520,2.52779,1820.7,1820.6,1.3980438]
[1743291102937,1.1070238,1820.9,1820.7,1.09889]
[1743291103133,0.0082438,1820.9,1820.8,2.1362]
[1743291103436,1.1070138,1820.9,1820.8,2.1362]
[1743291103625,2.4993138,1820.9,1820.8,2.1362]
[1743291104027,3.1794138,1820.9,1820.8,2.1362]
[1743291104220,3.1794138,1820.9,1820.8,1.4367]
[1743291104826,2.0806438,1820.9,1820.6,0.7077438]
[1743291105030,1.09889,1820.7,1820.6,2.1444438]
[1743291105326,1.09889,1820.7,1820.6,0.0082438]
[1743291105531,3.19189,1820.7,1820.6,0.0082438]
[1743291106235,2.093,1820.7,1820.2,50.736]
[1743291106428,1.09913,1820.3,1820.2,2.48129]
[1743291106627,1.09912,1820.4,1820.2,1.09919]
[1743291106828,2.53162,1820.4,1820.2,1.09919]
[1743291107025,3.9085,1820.7,1820.1,4.9292]
[1743291107228,1.09897,1820.6,1820.4,1.09903]
[1743291107440,1.09895,1820.6,1820.5,1.4282]
[1743291108228,2.53145,1820.6,1820.5,1.4282]
[1743291109131,2.53145,1820.6,1820.5,2.52721]
[1743291109336,1.4325,1820.6,1820.5,2.52721]
[1743291110332,2.53145,1820.6,1820.5,2.52721]
[1743291110537,1.4325,1820.6,1820.5,2.52721]
[1743291110738,1.80469,1820.8,1820.6,1.09894]
[1743291110942,1.3728,1820.7,1820.5,1.4282]
[1743291111338,2.47173,1820.7,1820.5,2.52718]
[1743291112342,1.09895,1820.6,1820.5,2.52718]
[1743291112843,1.09895,1820.6,1820.5,1.4282]
[1743291113340,2.59285,1820.6,1820.5,1.4282]
[1743291113848,1.4939,1820.6,1820.5,2.52721]
[1743291114345,2.59285,1820.6,1820.5,1.4282]
[1743291116250,2.59285,1820.6,1820.5,2.52721]
[1743291117946,1.4939,1820.6,1820.5,3.97221]
[1743291120946,1.09893,1820.7,1820.6,1.09895]
[1743291121147,2.60513,1820.7,1820.6,2.56845]
[1743291122350,2.60513,1820.7,1820.6,1.4695]
[1743291125253,1.09895,1820.6,1820.5,1.4282]
[1743291125549,1.09907,1820.4,1820.3,4.60112]
[1743291125752,1.09913,1820.3,1820.2,0.0082438]
[1743291125941,2.48753,1820.3,1820.2,1.4555438]
[1743291128252,2.48753,1820.3,1820.2,0.0082438]
[1743291128650,1.09931,1820.0,1819.9,1.4301]
[1743291128851,2.8194,1820.2,1819.8,0.5496]
[1743291129047,1.4185,1819.9,1819.8,3.14762]
[1743291129252,1.4185,1819.9,1819.8,2.59802]
[1743291129956,2.50013,1820.2,1819.8,1.4986]
[1743291130152,1.3592,1820.1,1820.0,1.09928]
[1743291130454,2.45845,1820.1,1820.0,1.09928]
[1743291130654,1.3592,1820.1,1820.0,1.09928]
[1743291132058,2.45849,1820.1,1819.9,1.09933]
[1743291132260,2.45849,1820.1,1820.0,0.6979]
[1743291132754,1.09931,1820.0,1819.9,1.09933]
[1743291132953,2.45851,1820.0,1819.9,1.09933]
[1743291133455,1.09937,1819.9,1819.8,5.29933]
[1743291133652,1.3804,1819.9,1819.8,5.29933]
[1743291134159,2.47977,1819.9,1819.8,5.29933]
[1743291134360,1.3804,1819.9,1819.8,5.29933]
[1743291135048,2.47977,1819.9,1819.8,5.29933]
[1743291135244,1.3804,1819.9,1819.8,5.29933]
[1743291135856,2.47977,1819.9,1819.8,5.29933]
[1743291136056,2.47977,1819.9,1819.8,4.1999]
[1743291136251,2.47977,1819.9,1819.8,5.29933]
[1743291136861,2.47977,1819.9,1819.8,4.1999]
[1743291137061,2.47977,1819.9,1819.7,5.3116038]
[1743291137262,1.4284,1819.8,1819.7,5.3116038]
[1743291139765,1.4284,1819.8,1819.7,1.8096038]
[1743291139959,2.52783,1819.8,1819.7,0.7101438]
[1743291140263,2.52783,1819.8,1819.7,1.8096338]
[1743291140560,1.4284,1819.8,1819.7,1.8096338]
[1743291140763,0.0082438,1820.0,1819.9,1.09937]
[1743291140969,0.0082438,1820.0,1819.9,7.80917]
[1743291142367,0.0082438,1820.0,1819.9,4.60137]
[1743291143671,1.4342438,1820.0,1819.9,4.60137]
[1743291143866,2.5335538,1820.0,1819.9,4.60137]
[1743291144073,2.5336038,1820.0,1819.9,3.502]
[1743291144975,2.5336038,1820.0,1819.9,4.60137]
[1743291145366,1.4342438,1820.0,1819.9,3.502]
[1743291145568,2.5335538,1820.0,1819.9,3.502]
[1743291145765,1.4342438,1820.0,1819.9,4.60137]
[1743291146677,2.5335538,1820.0,1819.9,4.60137]
[1743291147879,2.5335538,1820.0,1819.9,5.33347]
[1743291150677,2.5335538,1820.0,1819.9,4.2341]
[1743291150980,2.5335538,1820.0,1819.9,3.502]
[1743291151273,2.5335538,1820.0,1819.8,1.474]
[1743291151274,1.09937,1819.9,1819.8,1.474]
[1743291151472,3.95567,1819.9,1819.8,4.976]
[1743291152771,1.09943,1819.8,1819.7,3.5102438]
[1743291152973,2.48623,1819.8,1819.7,3.5102438]
[1743291153783,2.48623,1819.8,1819.7,4.6097338]
[1743291153983,2.48623,1819.8,1819.7,6.0862338]
[1743291154185,2.48623,1819.8,1819.7,4.9867438]
[1743291155084,2.48623,1819.8,1819.7,6.0862338]
[1743291155879,2.48623,1819.8,1819.7,4.9867438]
[1743291156283,2.48623,1819.8,1819.7,1.4847438]
[1743291158589,2.48623,1819.8,1819.7,0.0082438]
[1743291160084,2.48623,1819.8,1819.2,8.23240856]
[1743291160085,2.7489,1819.6,1819.1,3.503]
[1743291160294,1.0998,1819.2,1819.1,4.8904]
[1743291160587,1.0998,1819.2,1819.1,5.6366]
[1743291160787,2.552,1819.2,1819.1,6.73646]
[1743291161287,1.4522,1819.2,1819.1,6.73646]
[1743291161476,2.552,1819.2,1819.1,5.6366]
[1743291161877,2.552,1819.2,1819.1,2.1336]
[1743291162089,1.4522,1819.2,1819.1,3.23346]
[1743291162296,3.2078,1819.3,1819.2,1.0998]
[1743291162588,4.30757,1819.3,1819.2,1.3791]
[1743291164384,1.09977,1819.3,1819.2,1.3791]
[1743291170088,1.4522,1819.4,1819.2,1.3791]
[1743291170287,3.2078,1819.5,1819.4,1.09968]
[1743291170892,1.09968,1819.4,1819.3,6.05791]
[1743291171095,1.09968,1819.4,1819.3,4.9582]
[1743291171293,2.50158,1819.4,1819.3,4.9582]
[1743291177398,2.50158,1819.4,1819.3,6.05794]
[1743291177399,1.4019,1819.4,1819.3,6.05794]
[1743291178397,1.09964,1819.5,1819.4,1.09968]
[1743291178600,2.56234,1819.5,1819.4,2.0939]
[1743291181005,2.56234,1819.5,1819.4,3.19358]
[1743291181306,2.56234,1819.5,1819.4,2.0939]
[1743291182406,2.56234,1819.5,1819.4,3.19358]
[1743291182607,2.56234,1819.5,1819.4,2.0939]
[1743291183708,2.56234,1819.5,1819.4,3.19358]
[1743291183911,2.56234,1819.5,1819.4,2.0939]
[1743291184409,1.09968,1819.4,1819.3,3.503]
[1743291184610,2.57228,1819.4,1819.3,5.718]
[1743291184819,2.57228,1819.4,1819.3,6.81774]
[1743291187219,1.4726,1819.4,1819.3,6.81774]
[1743291187405,2.57228,1819.4,1819.3,6.81774]
[1743291187911,1.4726,1819.4,1819.3,6.81774]
[1743291188710,3.2160438,1820.0,1819.7,1.09949]
[1743291188902,1.09943,1819.8,1819.3,11.67509]
[1743291189103,1.09943,1819.8,1819.4,1.498]
[1743291189309,1.09943,1819.8,1819.5,0.7366]
[1743291189511,2.48993,1819.8,1819.7,1.09949]
[1743291189712,2.48993,1819.8,1819.6,6.80181]
[1743291190010,2.48993,1819.8,1819.7,1.498]
[1743291190211,2.48993,1819.8,1819.7,2.59749]
[1743291190409,1.3905,1819.8,1819.7,2.59749]
[1743291190609,2.48993,1819.8,1819.7,2.59749]
[1743291190810,1.3905,1819.8,1819.7,2.59749]
[1743291191010,4.6002438,1820.0,1819.9,1.09937]
[1743291191509,5.6995538,1820.0,1819.9,1.09937]
[1743291191811,4.6002438,1820.0,1819.9,1.82867]
[1743291192109,1.3924438,1820.0,1819.9,2.52237]
[1743291193502,2.4917538,1820.0,1819.9,2.52237]
[1743291193703,1.3924438,1820.0,1819.9,2.52237]
[1743291194103,2.4917538,1820.0,1819.9,2.52237]
[1743291194308,1.3924438,1820.0,1819.9,2.52237]
[1743291195313,1.3924438,1820.0,1819.9,6.02537]
[1743291195516,2.4917538,1820.0,1819.9,6.02537]
[1743291195714,1.3924438,1820.0,1819.9,6.02537]
[1743291196917,1.3924438,1820.0,1819.9,7.51897]
[1743291197912,0.0082438,1820.0,1819.9,7.51897]
[1743291199415,0.0082438,1820.0,1819.9,10.72677]
[1743291201208,0.0082438,1820.0,1819.9,7.51897]
[1743291201710,1.4722438,1820.0,1819.9,7.51897]
[1743291202113,2.5715538,1820.0,1819.9,4.01597]
[1743291202422,6.7205838,1820.0,1819.4,6.7098]
[1743291202608,3.2078,1819.7,1819.2,0.6861]
[1743291202808,3.2078,1819.5,1819.1,1.4173]
[1743291203019,2.2039,1819.4,1819.2,1.09976]
[1743291203213,1.5001,1819.3,1819.2,1.09976]
[1743291204421,2.59984,1819.3,1819.1,2.51711]
[1743291204918,1.09974,1819.3,1819.2,1.4581]
[1743291205819,1.83961,1819.4,1819.2,2.55787]
[1743291206820,1.83958,1819.4,1819.3,1.4881]
[1743291207214,1.83958,1819.4,1819.2,1.09976]
[1743291207416,0.7399,1819.4,1819.3,1.09974]
[1743291207911,3.2078,1819.5,1819.4,1.09968]
[1743291208619,3.2078,1819.5,1819.4,2.58778]
[1743291209017,4.30742,1819.5,1819.4,2.58778]
[1743291209224,5.01474,1819.5,1819.3,4.60171]
[1743291209520,5.01474,1819.5,1819.4,1.09968]
[1743291209720,5.01474,1819.5,1819.4,2.53938]
[1743291209924,5.01474,1819.5,1819.4,1.4397]
[1743291210722,5.01474,1819.5,1819.3,4.6017]
[1743291212427,3.9151,1819.5,1819.2,4.60274]
[1743291212625,1.09972,1819.4,1819.2,4.60274]
[1743291213314,1.09972,1819.4,1819.2,1.09974]
[1743291213720,3.9151,1819.5,1819.2,2.46744]
[1743291214324,3.9151,1819.5,1819.2,1.09974]
[1743291214724,1.09973,1819.4,1819.2,1.09974]
[1743291215135,1.09973,1819.4,1819.2,2.46744]
[1743291215434,1.09974,1819.3,1819.2,2.46744]
[1743291216839,1.09972,1819.4,1819.2,2.46744]
[1743291217839,1.5078,1819.3,1819.2,2.46744]
[1743291218042,2.60754,1819.3,1819.2,1.3677]
[1743291218343,5.81534,1819.3,1819.2,1.3677]
[1743291218533,5.81538,1819.3,1819.1,4.60282]
[1743291218728,5.81538,1819.3,1819.1,6.00782]
[1743291218729,1.4758,1819.2,1819.1,6.00782]
[1743291219438,2.5756,1819.2,1819.1,6.00782]
[1743291219646,1.4758,1819.2,1819.1,6.00782]
[1743291220643,2.5756,1819.2,1819.1,6.00782]
[1743291221035,1.4758,1819.2,1819.1,6.00782]
[1743291221741,2.5756,1819.2,1819.1,6.00782]
[1743291224143,1.09986,1819.1,1819.0,0.7496438]
[1743291224335,3.97306,1819.1,1819.0,3.5112438]
[1743291226246,2.8732,1819.1,1819.0,3.5112438]
[1743291226548,1.09976,1819.3,1819.1,1.0998]
[1743291226747,1.09973,1819.4,1819.2,2.51917]
[1743291226940,2.58893,1819.4,1819.2,2.51917]
[1743291227139,2.58893,1819.4,1819.3,1.4194]
[1743291227447,2.58893,1819.4,1819.3,2.51914]
[1743291227644,2.58893,1819.4,1819.3,1.4194]
[1743291230142,1.4892,1819.4,1819.3,6.02214]
[1743291230341,4.6197,1819.5,1819.4,1.09968]
[1743291230342,3.9198,1819.5,1819.4,1.09968]
[1743291230544,4.5704,1819.5,1819.4,3.32588]
[1743291230743,5.67002,1819.5,1819.4,3.32588]
[1743291231247,2.46222,1819.5,1819.4,3.32588]
[1743291231635,1.09959,1819.6,1819.4,3.32588]
[1743291231835,2.46219,1819.6,1819.5,1.4839]
[1743291232041,2.46219,1819.6,1819.5,3.28632]
[1743291232640,1.80727,1819.8,1819.6,1.09956]
[1743291232847,1.3626,1819.7,1819.6,1.09956]
[1743291233647,2.46209,1819.7,1819.5,1.80238]
[1743291234047,2.46209,1819.7,1819.6,3.503]
[1743291236648,5.66989,1819.7,1819.6,3.503]
[1743291240358,2.46209,1819.7,1819.6,3.503]
[1743291240759,5.66989,1819.7,1819.6,3.503]
[1743291242658,4.5704,1819.7,1819.6,4.60256]
[1743291242860,5.66989,1819.7,1819.6,3.503]
[1743291243863,2.46209,1819.7,1819.6,3.503]
[1743291244056,2.46209,1819.7,1819.6,4.60256]
[1743291245463,2.46209,1819.7,1819.6,3.503]
[1743291245657,5.03561,1819.9,1819.6,3.503]
[1743291245864,1.3834,1819.9,1819.8,1.09943]
[1743291246261,1.3834,1819.9,1819.8,1.80293]
[1743291246664,2.48277,1819.9,1819.8,0.7035]
[1743291246862,1.09943,1819.8,1819.7,0.699]
[1743291247065,2.48283,1819.8,1819.7,0.699]
[1743291247266,3.18313,1819.8,1819.7,0.699]
[1743291247567,3.18313,1819.8,1819.7,1.79849]
[1743291247768,2.48283,1819.8,1819.7,3.21859]
[1743291248060,1.3834,1819.8,1819.7,3.21859]
[1743291249657,1.8516,1819.9,1819.8,1.09943]
[1743291249862,3.3003,1819.9,1819.8,1.4009]